bitfinex/quotes_SOLUSD_20240717
["timestamp","ask_amount","ask_price","bid_price","bid_amount"]
[1721258686338,20.0,155.87,155.83,61.18]
[1721258686633,20.0,155.87,155.84,15.84]
[1721258686939,20.0,155.89,155.85,0.34]
[1721258687636,20.0,155.89,155.85,6.4162]
[1721258688818,26.4148,155.89,155.85,6.4162]
[1721258689009,6.4156,155.87,155.84,0.34]
[1721258689213,20.0,155.89,155.83,0.17]
[1721258689214,6.4161,155.86,155.83,0.17]
[1721258689617,6.4161,155.86,155.82,32.6341]
[1721258690110,6.4161,155.86,155.82,39.0517]
[1721258690531,6.4157,155.87,155.82,39.0517]
[1721258691121,6.4153,155.88,155.83,6.4171]
[1721258691330,20.0,155.87,155.83,6.4171]
[1721258692718,26.4156,155.87,155.83,6.4171]
[1721258693640,20.0,155.87,155.79,31.7864]
[1721258693950,6.4165,155.85,155.8,51.7581]
[1721258694251,6.4165,155.85,155.8,6.4181]
[1721258694419,20.0,155.84,155.8,6.4181]
[1721258695636,20.0,155.84,155.8,1.28340865]
[1721258695924,6.4168,155.84,155.79,38.2051]
[1721258696136,20.0,155.83,155.79,38.2051]
[1721258696332,20.0,155.83,155.8,7.70186702]
[1721258696939,26.4168,155.84,155.8,6.4184]
[1721258698123,20.0,155.84,155.81,6.588]
[1721258698328,20.0,155.84,155.82,0.17]
[1721258698642,20.0,155.85,155.82,0.17]
[1721258699146,20.0,155.85,155.82,17.29326328]
[1721258699355,20.0,155.86,155.82,16.01]
[1721258699646,20.0,155.86,155.83,6.5871]
[1721258699826,20.0,155.87,155.83,6.5871]
[1721258700230,26.4157,155.87,155.83,0.17]
[1721258700545,6.416,155.86,155.83,0.17]
[1721258700744,20.0,155.85,155.83,0.17]
[1721258701548,20.0,155.85,155.83,51.587]
[1721258701721,20.0,155.86,155.84,0.17]
[1721258703442,26.4161,155.86,155.84,0.17]
[1721258703736,20.0,155.86,155.83,0.34]
[1721258704055,23.90191311,155.96,155.85,15.84]
[1721258704266,6.4138,155.92,155.87,22.2554]
[1721258704434,6.4139,155.91,155.86,67.7953]
[1721258704765,6.4139,155.91,155.87,7.6983096]
[1721258705048,16.0301,155.96,155.87,7.6983096]
[1721258705049,6.4136,155.92,155.88,0.34]
[1721258705249,6.4136,155.92,155.88,1.6227735]
[1721258705623,20.0,155.91,155.88,1.6227735]
[1721258706129,26.414,155.91,155.88,0.34]
[1721258706556,26.414,155.91,155.87,0.34]
[1721258707038,26.414,155.91,155.87,6.7555]
[1721258707476,20.0,155.91,155.87,6.7555]
[1721258709165,6.4131,155.93,155.87,16.18]
[1721258709368,6.4131,155.93,155.88,45.0]
[1721258709369,20.0,155.92,155.88,45.0]
[1721258709530,20.0,155.92,155.89,0.34]
[1721258710366,20.0,155.92,155.89,8.03738893]
[1721258710733,20.0,155.92,155.89,6.7547]
[1721258710939,20.0,155.93,155.89,6.7547]
[1721258711138,26.4132,155.93,155.89,6.7547]
[1721258713247,20.0,155.93,155.9,6.4142]
[1721258713842,26.4131,155.93,155.89,0.34]
[1721258714043,26.4131,155.93,155.89,6.7546]
[1721258714467,20.0,155.93,155.9,6.4143]
[1721258714658,20.0,155.97,155.91,6.4138]
[1721258716354,6.4123,155.95,155.91,6.4138]
[1721258716553,20.0,155.94,155.9,6.4142]
[1721258716953,26.4127,155.94,155.89,21.9839]
[1721258718159,20.0,155.94,155.9,6.4141]
[1721258718857,20.0,155.94,155.9,7.69666995]
[1721258719063,26.4128,155.94,155.9,7.69666995]
[1721258719962,26.4128,155.94,155.9,6.4141]
[1721258720169,20.0,155.94,155.9,6.4141]
[1721258720461,20.0,155.94,155.91,6.7539]
[1721258720653,20.0,155.95,155.91,6.7539]
[1721258722963,20.0,155.95,155.91,0.34]
[1721258722964,6.4127,155.94,155.91,0.34]
[1721258723168,6.4127,155.94,155.9,16.0353]
[1721258723354,6.4127,155.94,155.91,0.34]
[1721258724867,26.4123,155.95,155.91,0.34]
[1721258725052,26.4123,155.95,155.91,51.7538]
[1721258725250,26.4123,155.95,155.91,6.7538]
[1721258728180,26.4123,155.95,155.91,22.5938]
[1721258728181,20.0,155.95,155.91,22.5938]
[1721258729768,20.0,155.95,155.92,6.4135]
[1721258729977,20.0,155.96,155.93,0.34]
[1721258730168,20.0,155.96,155.93,8.03547887]
[1721258730347,20.0,155.96,155.93,6.7531]
[1721258732974,6.4116,155.97,155.93,6.7531]
[1721258733161,6.411,155.98,155.93,6.7531]
[1721258733678,6.411,155.98,155.93,22.5931]
[1721258734356,20.0,155.97,155.93,22.5931]
[1721258735382,6.4105,156.0,155.95,6.4122]
[1721258735582,6.4105,156.0,155.96,1.28214453]
[1721258736176,6.4105,156.0,155.96,6.4118]
[1721258736363,6.4099,156.01,155.97,0.34]
[1721258736762,20.0,156.0,155.97,0.34]
[1721258739682,20.0,156.0,155.97,6.7514]
[1721258741892,6.4094,156.02,155.98,6.4109]
[1721258742181,20.0,156.01,155.98,6.4109]
[1721258743662,20.0,156.01,155.97,6.7513]
[1721258743875,26.4098,156.01,155.97,6.7513]
[1721258744269,20.0,156.01,155.97,6.7513]
[1721258744671,20.0,156.01,155.97,22.5913]
[1721258746768,26.41,156.01,155.97,6.7513]
[1721258746979,26.41,156.01,155.97,0.34]
[1721258747277,26.41,156.01,155.97,61.18]
[1721258747585,20.0,156.01,155.97,67.5911]
[1721258748789,20.0,156.01,155.98,6.4109]
[1721258748971,20.0,156.01,155.99,6.4106]
[1721258749174,20.0,156.03,156.0,6.7501]
[1721258754289,20.0,156.03,156.0,8.03189711]
[1721258755485,20.0,156.03,156.01,6.4097]
[1721258755685,20.0,156.04,156.01,6.4097]
[1721258755875,16.0178,156.08,156.01,6.4097]
[1721258756079,6.4078,156.06,156.02,6.4091]
[1721258756678,6.4074,156.07,156.03,6.4089]
[1721258756879,6.4069,156.08,156.03,6.4089]
[1721258757399,6.4069,156.08,156.04,1.28152019]
[1721258757796,6.4069,156.08,156.03,22.2489]
[1721258757980,6.4069,156.08,156.04,1.28151364]
[1721258758393,20.0,156.07,156.04,1.28151364]
[1721258759304,26.4074,156.07,156.04,1.28151364]
[1721258760091,26.4074,156.07,156.03,22.2489]
[1721258760309,26.4074,156.07,156.03,6.4089]
[1721258760992,26.4074,156.07,156.04,1.28150619]
[1721258761302,26.4074,156.07,156.03,6.4089]
[1721258762409,20.0,156.07,156.02,32.2031]
[1721258762596,20.0,156.07,156.02,16.3631]
[1721258762597,6.4078,156.06,156.02,16.3631]
[1721258762785,6.4083,156.05,156.01,6.4095]
[1721258763105,16.0158,156.1,156.0,6.4102]
[1721258763106,6.4088,156.04,156.0,6.4102]
[1721258763412,6.4088,156.04,155.99,32.2282]
[1721258764106,6.4093,156.03,155.99,32.2282]
[1721258764605,6.4095,156.02,155.99,16.2022]
[1721258764808,6.4095,156.02,155.98,6.4106]
[1721258766783,6.4091,156.03,155.98,6.4106]
[1721258766984,20.0,156.02,155.98,6.4106]
[1721258768408,20.0,156.02,155.99,6.4106]
[1721258769210,20.0,156.03,156.0,6.4101]
[1721258769412,20.0,156.04,156.01,6.4098]
[1721258770714,26.4087,156.04,156.0,22.4352]
[1721258770901,20.0,156.04,156.0,22.4352]
[1721258772891,26.4087,156.04,156.0,16.0251]
[1721258773503,26.4087,156.04,156.0,22.4352]
[1721258773704,20.0,156.04,156.0,22.4352]
[1721258775700,20.0,156.04,156.01,6.4097]
[1721258784521,6.4083,156.05,156.0,38.2752]
[1721258784727,6.4083,156.05,156.01,0.17]
[1721258784929,6.4083,156.05,156.01,6.5797]
[1721258786027,6.4078,156.06,156.02,6.4093]
[1721258786214,69.647,156.11,156.02,6.5793]
[1721258786215,20.0,156.05,156.02,6.5793]
[1721258786707,6.407,156.08,156.03,15.84]
[1721258786914,20.0,156.07,156.04,23.52979539]
[1721258787124,20.0,156.08,156.05,15.84]
[1721258787323,20.0,156.08,156.04,22.2483]
[1721258787499,20.0,156.08,156.05,0.17]
[1721258787700,20.0,156.08,156.05,0.34]
[1721258789919,20.0,156.08,156.05,16.18]
[1721258790724,20.0,156.08,156.05,22.588]
[1721258791813,20.0,156.08,156.05,16.18]
[1721258794730,6.4062,156.1,156.05,22.5879]
[1721258795121,6.4062,156.1,156.05,23.86926215]
[1721258796246,6.4062,156.1,156.05,22.5879]
[1721258797725,6.4062,156.1,156.06,15.84]
[1721258798838,6.4062,156.1,156.06,17.1213534]
[1721258799045,6.4062,156.1,156.06,23.5290534]
[1721258799412,6.4062,156.1,156.06,22.2477]
[1721258801532,6.4057,156.11,156.07,6.4072]
[1721258801728,20.0,156.1,156.07,6.4072]
[1721258801916,20.0,156.1,156.08,6.4068]
[1721258802326,6.4045,156.14,156.1,6.4061]
[1721258802730,6.3131,156.15,156.06,22.4265]
[1721258802920,6.3131,156.15,156.06,31.8591]
[1721258803243,6.3131,156.15,156.07,0.17]
[1721258803616,6.4052,156.13,156.08,6.4069]
[1721258804036,6.4052,156.13,156.09,6.4065]
[1721258804217,26.4045,156.14,156.09,6.4065]
[1721258805137,0.6517792,156.17,156.11,15.84]
[1721258805428,0.6517792,156.17,156.15,22.4139]
[1721258805625,0.6517792,156.17,156.16,6.4036]
[1721258806223,0.6517792,156.17,156.15,16.0099]
[1721258806746,0.6517792,156.17,156.16,6.4036]
[1721258807447,0.6517792,156.17,156.16,7.68415]
[1721258807943,0.6517792,156.17,156.16,23.52415]
[1721258809838,0.6517792,156.17,156.16,68.86415]
[1721258810311,0.6517792,156.17,156.16,94.06735]
[1721258811038,0.6517792,156.17,156.16,92.7868]
[1721258811719,0.6517792,156.17,156.16,94.06698477]
[1721258812023,0.6517792,156.17,156.16,109.90698477]
[1721258812217,0.6517792,156.17,156.16,94.06698477]
[1721258812416,0.6517792,156.17,156.16,112.0668]
[1721258813617,0.6517792,156.17,156.16,129.18681272]
[1721258817842,0.6517792,156.17,156.16,127.9068]
[1721258819419,0.6517792,156.17,156.16,129.18682359]
[1721258820318,0.6517792,156.17,156.16,127.9068]
[1721258821244,0.6517792,156.17,156.16,92.7868]
[1721258821849,0.6517792,156.17,156.16,37.4468]
[1721258822061,0.6517792,156.17,156.16,38.72698068]
[1721258822531,0.6517792,156.17,156.16,48.72698132]
[1721258823153,0.6517792,156.17,156.16,94.06698132]
[1721258823350,0.6517792,156.17,156.16,112.0668]
[1721258824954,0.6517792,156.17,156.16,127.9068]
[1721258825160,0.6517792,156.17,156.16,129.18686131]
[1721258828472,7.92e-05,156.17,156.16,196.70686131]
[1721258828640,6.3989,156.28,156.23,6.4006]
[1721258828842,6.3991,156.27,156.24,1.27984107]
[1721258829036,6.3991,156.27,156.23,6.4006]
[1721258829576,6.3996,156.26,156.22,32.1825]
[1721258829749,6.3996,156.26,156.22,16.3425]
[1721258830088,6.3996,156.26,156.23,0.17]
[1721258830370,6.3992,156.27,156.23,45.34]
[1721258830661,26.3997,156.26,156.22,16.0025]
[1721258830871,6.4,156.25,156.21,6.7416]
[1721258831035,6.4,156.25,156.22,0.17]
[1721258831470,26.3997,156.26,156.22,0.17]
[1721258831841,20.0,156.26,156.2,6.4019]
[1721258832166,6.4004,156.24,156.19,22.4076]
[1721258832647,6.4001,156.25,156.19,16.0056]
[1721258832847,20.0,156.24,156.21,6.4015]
[1721258833043,6.3992,156.27,156.21,16.0035]
[1721258833276,20.0,156.26,156.22,61.18]
[1721258833559,20.0,156.26,156.22,45.34]
[1721258835444,20.0,156.26,156.22,51.7411]
[1721258836570,26.3996,156.26,156.21,22.405]
[1721258836772,6.4001,156.25,156.21,22.405]
[1721258838168,6.401,156.23,156.18,16.007]
[1721258838484,15.0215,156.25,156.13,48.5884]
[1721258838485,6.5246,156.24,156.13,48.5884]
[1721258838668,6.4013,156.22,156.17,6.403]
[1721258838876,6.4013,156.22,156.17,22.4106]
[1721258838877,20.0,156.21,156.17,22.4106]
[1721258839173,20.0,156.21,156.18,6.4027]
[1721258839351,20.0,156.22,156.18,6.4027]
[1721258839952,26.4012,156.22,156.18,6.4027]
[1721258840771,20.0,156.22,156.18,6.4027]
[1721258841768,26.4012,156.22,156.17,22.4108]
[1721258843376,26.4012,156.22,156.17,16.0076]
[1721258843377,6.4017,156.21,156.17,16.0076]
[1721258843555,26.402,156.2,156.17,16.0076]
[1721258843754,6.402,156.2,156.17,16.0076]
[1721258843956,6.4017,156.21,156.17,16.0076]
[1721258844181,20.0,156.2,156.17,16.0076]
[1721258845652,20.0,156.2,156.17,22.4108]
[1721258846172,20.0,156.2,156.17,16.0076]
[1721258846389,26.4021,156.2,156.14,16.0108]
[1721258846682,26.4021,156.2,156.15,6.4037]
[1721258846870,26.4021,156.2,156.16,6.4036]
[1721258847371,6.4024,156.19,156.15,6.404]
[1721258847561,6.0559,156.17,156.11,16.014]
[1721258847757,6.0559,156.17,156.13,16.0117]
[1721258847958,16.1207,156.2,156.14,1.28071738]
[1721258848168,20.0,156.19,156.17,6.4029]
[1721258848677,20.0,156.19,156.15,16.0095]
[1721258848678,20.0,156.19,156.16,6.4035]
[1721258849266,20.0,156.2,156.17,6.4032]
[1721258849579,20.0,156.2,156.19,6.4024]
[1721258849961,20.0,156.2,156.17,16.0076]
[1721258850169,26.4016,156.21,156.17,22.4107]
[1721258850380,26.4016,156.21,156.17,16.0076]
[1721258851083,20.0,156.21,156.17,22.4107]
[1721258851581,20.0,156.21,156.17,16.0076]
[1721258851778,20.0,156.23,156.17,16.0076]
[1721258852384,26.4008,156.23,156.19,6.4023]
[1721258852558,26.4008,156.23,156.18,1.28028805]
[1721258852755,20.0,156.23,156.19,6.4024]
[1721258853264,26.4009,156.23,156.19,6.4024]
[1721258854683,26.4009,156.23,156.18,51.7427]
[1721258854891,6.4012,156.22,156.18,0.34]
[1721258855087,6.4024,156.2,156.15,6.404]
[1721258855287,6.4028,156.18,156.14,6.4044]
[1721258855583,6.4033,156.17,156.12,6.4052]
[1721258857304,6.4037,156.16,156.12,6.4052]
[1721258857479,6.4037,156.16,156.13,1.28082142]
[1721258857684,20.0,156.19,156.13,6.4048]
[1721258857980,6.4029,156.18,156.13,6.4048]
[1721258858177,6.4029,156.18,156.11,15.1706]
[1721258858178,20.0,156.17,156.11,25.1706]
[1721258858388,21.777,156.22,156.14,15.84]
[1721258858597,6.4016,156.21,156.16,6.4035]
[1721258858768,6.4016,156.21,156.17,16.0081]
[1721258859900,20.0,156.2,156.17,16.0081]
[1721258861103,20.0,156.2,156.17,22.4113]
[1721258861286,6.4011,156.23,156.17,22.4113]
[1721258861479,6.4011,156.23,156.19,6.4024]
[1721258861795,6.4005,156.24,156.19,6.4024]
[1721258861982,6.4014,156.22,156.17,16.0081]
[1721258862185,6.4017,156.21,156.17,16.0081]
[1721258862395,6.4017,156.21,156.15,45.34]
[1721258862396,6.3719,156.25,156.15,51.744]
[1721258862698,6.402,156.21,156.15,45.34]
[1721258862914,6.4011,156.23,156.18,6.4027]
[1721258863084,26.4013,156.22,156.17,6.4032]
[1721258863905,26.4013,156.22,156.16,16.0083]
[1721258863906,20.0,156.22,156.16,31.8483]
[1721258864208,20.0,156.22,156.17,45.34]
[1721258865091,12.7722,156.25,156.2,6.402]
[1721258865284,12.7722,156.25,156.18,16.0064]
[1721258865285,26.4004,156.24,156.19,6.4023]
[1721258865990,26.4004,156.24,156.18,16.0064]
[1721258865991,20.0,156.24,156.2,7.68227467]
[1721258866413,26.4005,156.24,156.2,7.68227467]
[1721258866786,26.4005,156.24,156.2,6.402]
[1721258867380,26.4005,156.24,156.19,7.68249774]
[1721258867607,26.4005,156.24,156.19,6.4023]
[1721258868995,26.4005,156.24,156.2,6.4019]
[1721258870213,26.4005,156.24,156.19,6.4024]
[1721258871106,6.4005,156.24,156.19,6.4024]
[1721258871410,6.4,156.25,156.2,6.402]
[1721258871615,20.0,156.24,156.2,6.402]
[1721258872015,26.4004,156.24,156.2,6.402]
[1721258872313,6.4008,156.23,156.19,0.17]
[1721258872499,6.4008,156.23,156.19,51.7424]
[1721258873420,6.4008,156.23,156.19,45.34]
[1721258874212,6.4008,156.23,156.19,51.7423]
[1721258874811,6.4004,156.24,156.19,51.7423]
[1721258875310,6.4004,156.24,156.2,6.4019]
[1721258877889,6.4,156.25,156.21,6.4016]
[1721258878091,20.0,156.24,156.21,6.4016]
[1721258878595,20.0,156.24,156.22,6.4011]
[1721258878799,20.0,156.26,156.22,6.4011]
[1721258879393,26.3996,156.26,156.21,6.4015]
[1721258880208,6.4,156.25,156.2,22.4064]
[1721258880411,20.0,156.24,156.2,22.4064]
[1721258880616,26.4005,156.24,156.19,6.4021]
[1721258880801,20.0,156.24,156.18,10.0]
[1721258880999,20.0,156.28,156.18,10.0]
[1721258881691,6.4003,156.25,156.2,6.402]
[1721258881891,20.0,156.24,156.2,6.402]
[1721258882309,20.0,156.28,156.2,6.402]
[1721258882647,6.4001,156.25,156.2,6.402]
[1721258882793,20.0,156.24,156.2,6.402]
[1721258883912,26.4005,156.24,156.2,6.402]
[1721258884413,26.4005,156.24,156.19,22.4079]
[1721258884590,20.0,156.24,156.19,16.0056]
[1721258885399,20.0,156.24,156.21,6.4016]
[1721258887100,20.0,156.24,156.2,6.4019]
[1721258888532,26.4004,156.24,156.2,6.4019]
[1721258888815,6.4008,156.23,156.19,16.0056]
[1721258889126,20.0,156.24,156.16,16.0089]
[1721258889312,6.4025,156.19,156.15,6.404]
[1721258889718,6.443,156.23,156.15,6.404]
[1721258889896,6.4021,156.2,156.15,6.404]
[1721258890101,20.0,156.19,156.15,6.404]
[1721258891120,20.0,156.19,156.16,6.4035]
[1721258891700,20.0,156.19,156.14,6.4041]
[1721258891901,26.4025,156.19,156.14,6.4041]
[1721258892503,6.4016,156.21,156.16,6.4035]
[1721258892721,20.0,156.2,156.16,6.4035]
[1721258893212,26.4021,156.2,156.16,6.4035]
[1721258893936,20.0,156.2,156.16,6.4035]
[1721258895106,26.402,156.2,156.15,22.4136]
[1721258896029,26.402,156.2,156.16,6.4036]
[1721258896908,20.0,156.2,156.16,6.4036]
[1721258901107,6.4027,156.19,156.15,16.0096]
[1721258901321,6.4028,156.18,156.13,6.4045]
[1721258902205,20.0,156.2,156.13,6.4045]
[1721258902402,20.0,156.21,156.14,16.0108]
[1721258903306,6.4017,156.21,156.14,16.0108]
[1721258903508,20.0,156.2,156.14,31.8508]
[1721258903715,20.0,156.2,156.15,1.28059557]
[1721258903932,20.0,156.2,156.16,6.4035]
[1721258904608,26.4021,156.2,156.16,6.4035]
[1721258905738,26.4021,156.2,156.15,7.68459557]
[1721258906513,6.443,156.23,156.14,31.8508]
[1721258906514,6.4016,156.21,156.16,1.28059911]
[1721258907028,6.4016,156.21,156.15,60.84]
[1721258907713,6.4016,156.21,156.16,6.4033]
[1721258909435,6.4021,156.2,156.15,51.744]
[1721258909630,6.4026,156.19,156.15,0.17]
[1721258909819,6.4026,156.19,156.14,22.4152]
[1721258910014,6.4026,156.19,156.15,6.404]
[1721258910626,6.4021,156.2,156.15,6.404]
[1721258910829,6.4025,156.19,156.15,6.404]
[1721258911028,6.4025,156.19,156.14,22.4152]
[1721258912142,6.402,156.21,156.14,16.0108]
[1721258912348,20.0,156.2,156.16,6.4036]
[1721258912551,26.4021,156.2,156.16,6.4036]
[1721258912722,26.4021,156.2,156.15,6.404]
[1721258913760,26.4021,156.2,156.14,16.0108]
[1721258913941,26.4021,156.2,156.16,6.4036]
[1721258914261,26.4021,156.2,156.17,6.4032]
[1721258914262,20.0,156.2,156.17,6.4032]
[1721258914624,20.0,156.21,156.17,6.4032]
[1721258916446,20.0,156.21,156.18,1.28045031]
[1721258916857,26.4016,156.21,156.17,6.4032]
[1721258917862,15.4125,156.25,156.2,6.4019]
[1721258918061,15.4125,156.25,156.19,6.4023]
[1721258919051,6.4009,156.23,156.18,22.4093]
[1721258919366,15.4125,156.25,156.18,22.4093]
[1721258919367,6.4012,156.22,156.18,22.4093]
[1721258919738,6.4009,156.23,156.18,22.4093]
[1721258923066,6.4009,156.23,156.19,6.4024]
[1721258923242,22.1796,156.27,156.2,6.4019]
[1721258923243,6.4004,156.24,156.2,6.4019]
[1721258923763,6.4004,156.24,156.19,6.4023]
[1721258924078,6.4008,156.23,156.19,6.4023]
[1721258924658,6.4008,156.23,156.18,22.4093]
[1721258925966,6.4008,156.23,156.19,6.4024]
[1721258926780,6.4005,156.24,156.19,6.4024]
[1721258929849,6.4008,156.23,156.18,22.4094]
[1721258930055,6.4012,156.22,156.18,22.4094]
[1721258930263,6.4012,156.22,156.18,16.0066]
[1721258930960,6.4012,156.22,156.18,22.4094]
[1721258941274,6.4016,156.21,156.17,6.4032]
[1721258941477,6.4029,156.18,156.14,16.414]
[1721258941981,16.0027,156.23,156.14,16.414]
[1721258942177,20.0,156.22,156.14,32.254]
[1721258942553,26.4015,156.22,156.17,6.4029]
[1721258942756,6.4017,156.21,156.17,6.4029]
[1721258942978,20.0,156.2,156.17,6.4029]
[1721258943173,26.4012,156.22,156.17,6.4029]
[1721258944075,6.4007,156.24,156.19,6.4021]
[1721258944277,6.4007,156.24,156.2,6.402]
[1721258944472,6.4007,156.24,156.18,17.28693472]
[1721258944781,6.4008,156.23,156.19,6.4023]
[1721258944984,6.4004,156.24,156.19,6.4023]
[1721258945578,20.0,156.23,156.19,6.4023]
[1721258946084,26.4009,156.23,156.19,6.4023]
[1721258946579,6.4012,156.22,156.18,16.0066]
[1721258947285,6.4017,156.21,156.18,16.0066]
[1721258947674,6.4013,156.22,156.18,16.0066]
[1721258947882,20.0,156.23,156.18,22.4093]
[1721258948067,6.4008,156.23,156.19,6.4024]
[1721258949090,6.4004,156.24,156.19,6.4024]
[1721258949271,20.0,156.23,156.19,6.4024]
[1721258949772,20.0,156.23,156.2,6.402]
[1721258950872,20.0,156.23,156.19,6.4023]
[1721258951769,20.0,156.23,156.18,22.4093]
[1721258951968,20.0,156.26,156.18,22.4093]
[1721258952387,6.4015,156.22,156.18,16.0066]
[1721258952574,6.4015,156.22,156.18,22.4093]
[1721258953764,5.9015,156.22,156.18,22.4093]
[1721258954161,20.0,156.26,156.19,6.4023]
[1721258954162,6.4009,156.23,156.19,6.4023]
[1721258955200,6.4005,156.24,156.19,6.4023]
[1721258955500,20.0,156.23,156.19,6.4023]
[1721258958500,20.0,156.23,156.2,6.4018]
[1721258959369,26.4009,156.23,156.19,6.4024]
[1721258959784,20.0,156.23,156.2,6.4019]
[1721258960471,20.0,156.23,156.19,6.4023]
[1721258961573,26.4008,156.23,156.19,6.4023]
[1721258961775,6.4008,156.23,156.19,6.4023]
[1721258963688,6.4008,156.23,156.18,22.4093]
[1721258963894,6.4013,156.22,156.18,16.0066]
[1721258964081,6.4013,156.22,156.14,26.02928027]
[1721258964082,20.0,156.21,156.14,32.4244]
[1721258964599,6.4023,156.2,156.15,6.404]
[1721258965700,6.4017,156.21,156.16,6.4035]
[1721258965998,6.4017,156.21,156.14,32.4244]
[1721258965999,20.0,156.2,156.14,48.2644]
[1721258966877,20.0,156.2,156.16,16.0082]
[1721258967079,26.4008,156.23,156.18,6.4025]
[1721258967507,20.0,156.23,156.19,16.0057]
[1721258967878,20.0,156.23,156.19,22.408]
[1721258968187,20.0,156.23,156.19,22.4078]
[1721258968387,20.0,156.26,156.19,22.4078]
[1721258968582,6.4005,156.24,156.19,22.4078]
[1721258968787,20.0,156.23,156.19,22.4078]
[1721258969101,26.4008,156.23,156.19,22.4078]
[1721258972391,26.4008,156.23,156.19,16.0057]
[1721258972606,20.0,156.23,156.17,0.17]
[1721258972897,6.4021,156.2,156.16,22.4123]
[1721258973486,6.4017,156.21,156.17,6.4032]
[1721258975503,6.4017,156.21,156.16,38.2522]
[1721258975998,6.4017,156.21,156.17,6.4032]
[1721258976207,6.4013,156.22,156.17,6.4032]
[1721258976382,20.0,156.21,156.18,6.4028]
[1721258977206,20.0,156.21,156.17,6.4031]
[1721258977885,6.4021,156.2,156.16,22.4123]
[1721258978088,6.4021,156.2,156.16,16.0087]
[1721258978589,6.4021,156.2,156.16,22.4123]
[1721258979605,6.4021,156.2,156.16,16.0087]
[1721258981682,20.0,156.21,156.16,16.0087]
[1721258981906,6.4008,156.23,156.19,6.4023]
[1721258982112,20.0,156.22,156.19,6.4023]
[1721258983596,20.0,156.22,156.18,6.4027]
[1721258984291,20.0,156.22,156.19,6.4023]
[1721258984688,20.0,156.23,156.19,6.4023]
[1721258985399,26.4008,156.23,156.18,16.0066]
[1721258986217,26.4008,156.23,156.18,22.4092]
[1721258991411,6.4012,156.22,156.18,22.4092]
[1721258991614,20.0,156.21,156.18,22.4092]
[1721258993614,6.4012,156.22,156.18,22.4092]
[1721258993805,20.0,156.21,156.18,22.4092]
[1721258994005,6.4012,156.22,156.18,22.4092]
[1721258994714,6.4012,156.22,156.18,16.0066]
[1721258995114,6.4012,156.22,156.18,22.4094]
[1721258999132,22.1797,156.27,156.19,6.402]
[1721258999437,6.4008,156.23,156.19,6.402]
[1721258999733,20.0,156.22,156.19,6.402]
[1721259000139,20.0,156.22,156.18,22.4093]
[1721259000316,20.0,156.22,156.18,16.0066]
[1721259000520,20.0,156.22,156.19,6.7423]
[1721259002128,20.0,156.22,156.18,16.0066]
[1721259002329,6.4013,156.22,156.18,16.0066]
[1721259002629,6.4017,156.21,156.17,6.4029]
[1721259003942,6.4021,156.2,156.16,6.4036]
[1721259004233,6.4024,156.19,156.15,16.0098]
[1721259004834,16.0026,156.23,156.14,16.414]
[1721259005011,6.4029,156.18,156.14,16.414]